Cogmind - Beta 11.1 @@@ ROGUE MODE // 2022.06.04 @ 05:40:21 Player: LU-1G1 Result: Destroyed by as-50360 with Assembled Rifle Performance ------------- Evolutions (0) 0 Regions Visited (2) 400 Robots Destroyed (15) 75 Value Destroyed (291) 291 Prototype IDs (0) 0 Alien Tech Used (0) 0 Bonus (0) 0 TOTAL SCORE: 766 Bonus ------- None Cogmind --------- Core Integrity 0/250 Matter 290/300 Energy 99/100 System Corruption 5% Temperature Cool (0) Movement Core (50) Location -10/Mines Parts ------- > --- POWER (1) -------- (None) > --- PROPULSION (2) --- (None) > --- UTILITY (2) ------ (None) > --- WEAPON (2) ------- (None) > --- INVENTORY (5) ---- Light Ion Engine Aluminum Leg Signal Interpreter Small Laser Datajack Peak State ------------ > --- POWER ------------ Light Deuterium Engine > --- PROPULSION ------- Light Treads Light Treads > --- UTILITY ---------- High-capacity Storage Unit Propulsion Shielding > --- WEAPON ----------- Assault Rifle Light Assault Rifle > --- INVENTORY -------- Ion Engine Light Ion Engine Advanced Treads Aluminum Leg Aluminum Leg Wheel Compact Wheel Medium Storage Unit Signal Interpreter Seismic Detector Seismic Detector Seismic Detector Improved Utility Shielding Improved Utility Shielding Small Laser Grenade Launcher [Rating: 11] Favorites ----------- Power Ion Engine Engine Ion Engine Propulsion Light Treads Treads Light Treads Utility High-capacity Storage Unit Device Improved Terrain Scanner Storage High-capacity Storage Unit Protection Propulsion Shielding Weapon Assault Rifle Energy Gun Small Laser Ballistic Gun Assault Rifle Launcher Grenade Launcher Build | -11 -10 -10 ------- Run | Scr Mat Min Slots Evolved . | . . . Power . | . . . Propulsion . | . . . Utility . | . . . Weapon . | . . . Parts Attached 15 | 7 5 3 Power 2 | 1 . 1 Engine 2 | 1 . 1 Core . | . . . Reactor . | . . . Propulsion 5 | 2 2 1 Treads 5 | 2 2 1 Leg . | . . . Wheel . | . . . Hover . | . . . Flight . | . . . Utility 4 | 2 2 . Device 1 | 1 . . Storage 2 | 1 1 . Processor . | . . . Hackware . | . . . Protection 1 | . 1 . Artifact . | . . . Weapon 4 | 2 1 1 Energy Gun 1 | 1 . . Energy Cannon . | . . . Ballistic Gun 2 | 1 1 . Ballistic Cannon . | . . . Launcher 1 | . . 1 Special Weapon . | . . . Impact Weapon . | . . . Slashing Weapon . | . . . Piercing Weapon . | . . . Special Melee Weapon . | . . . Unidentified Prototypes . | . . . Parts Lost 8 | . 1 7 Power 1 | . . 1 Propulsion 2 | . . 2 Utility 2 | . 1 1 Weapon 3 | . . 3 Highest Loss Streak 7 | . 1 7 To Critical Strikes . | . . . Average Slot Usage (%) 97 | . 98 95 Engine 13 | . 14 13 Treads 27 | . 27 27 Device 3 | . 5 . Storage 13 | . 14 13 Protection 9 | . 7 13 Energy Gun 5 | . 8 . Ballistic Gun 22 | . 19 26 Naked Turns 8 | . . 8 Heaviest Build 49 | 14 49 49 Greatest Support 40 | 40 40 40 Greatest Overweight (x) 1 | . 1 1 Average Overweight (x) . | . . . Largest Inventory Capacity 20 | 8 20 20 Average Capacity 16 | 7 16 19 Most Carried 18 | 8 12 18 Average Carried 11 | 6 9 15 Final Capacity 20 | 8 20 5 Final Carried 12 | 7 12 5 Class Distribution -------------------- 100% | Mutant Dominant Class ---------------- Mutant | -10/Materials Mutant | -10/Mines Resources | -11 -10 -10 ----------- Run | Scr Mat Min Matter Collected 476 | 313 155 8 Remotely . | . . . Salvage Created 603 | 173 420 10 Parts 34 | 16 18 . Haulers Intercepted 1 | . 1 . Recyclers Shooed 2 | 1 1 . Parts Field Recycled . | . . . Retrieved Matter . | . . . Parts Self-Destructed . | . . . Prevented . | . . . Kills | -11 -10 -10 ------- Run | Scr Mat Min Combat Hostiles Destroyed 8 | . 6 2 Guns 7 | . 6 1 AOE 1 | . . 1 Classes Destroyed 6 | 2 3 1 Tunneler 4 | 4 . . Hauler 1 | . 1 . Recycler 2 | 1 1 . Watcher 2 | . 2 . Grunt 6 | . 6 . Assembled 2 | . . 2 Best Kill Streak 4 | 4 4 2 Combat Bots Only 4 | . 4 2 Max Kills in Single Turn 1 | 1 1 1 Gunslinging . | . . . Exploded 1 | . . 1 Melee . | . . . Uniques/NPCs Destroyed . | . . . Combat | -11 -10 -10 -------- Run | Scr Mat Min Damage Taken 1120 | . 350 770 Core 250 | . 32 218 Absorbed by Shields . | . . . Redirected to Shielding 50 | . . 50 Regen/Repaired (Parts) 47 | . 47 . Core Remaining (%) 100 | 100 . . Volleys Fired 57 | 16 33 8 Largest 2 | 1 2 2 Hottest 60 | 20 60 50 Shots Fired 94 | 16 66 12 Gun 93 | 16 66 11 Cannon . | . . . Launcher 1 | . . 1 Special . | . . . Kinetic 69 | 16 42 11 Thermal 24 | . 24 . Explosive 1 | . . 1 Electromagnetic . | . . . Robot Hit Streak 13 | 5 13 3 Robot Miss Streak 4 | 1 4 2 Penetration Max . | . . . Secondary Targets . | . . . Shots Hit Robots 56 | 12 39 5 Core Hits 29 | 6 17 6 Critical Kills 1 | 1 . . Critical Parts Destroyed 1 | . 1 . Critical Strikes 2 | 1 1 . Destroy 2 | 1 1 . Melee Attacks . | . . . Impact . | . . . Slashing . | . . . Piercing . | . . . Sneak Attacks . | . . . Combat Hostiles . | . . . Follow-up Attacks . | . . . Damage Inflicted 779 | 173 474 132 Guns 668 | 170 461 37 Cannons . | . . . Explosions 80 | . . 80 Melee . | . . . Ramming 31 | 3 13 15 Kinetic 499 | 170 292 37 Thermal 169 | . 169 . Explosive 80 | . . 80 Electromagnetic . | . . . Impact . | . . . Slashing . | . . . Piercing . | . . . Highest Corruption 5 | . 1 5 Average Corruption 1 | . 1 1 Corruption Purged . | . . . Corruption Blocked . | . . . Effects 5 | . 2 3 Message Errors 2 | . 1 1 Matter Fused 1 | . 1 . Heat Flow Errors 1 | . . 1 Misfires 1 | . . 1 Overload Shots . | . . . Overflow Damage . | . . . Projectiles . | . . . Explosions . | . . . Melee . | . . . Knockbacks 1 | . . 1 Impact 1 | . . 1 Kinetic . | . . . Secondary . | . . . Self-Inflicted Damage 40 | . . 40 Shots 1 | . . 1 Rammed 5 | 1 1 3 Targets Rammed 6 | 1 2 3 Kicked . | . . . Crushed 1 | . 1 . Highest Temperature 151 | . 60 151 Average Temperature 34 | . 32 45 Received Heat Transfer 192 | . 192 . Siege Activations . | . . . Robots Corrupted . | . . . Combat Hostiles . | . . . Parts Fried 3 | . 3 . Impact Corruptions . | . . . Robots Melted . | . . . Combat Hostiles . | . . . Parts Melted 1 | . 1 . Heat Transferred 375 | . 375 . Parts Sabotaged . | . . . Parts Stolen . | . . . Parts Stripped . | . . . Power Chain Reactions . | . . . Missiles Intercepted . | . . . Alert | -11 -10 -10 ------- Run | Scr Mat Min Peak Influence 251 | 25 251 37 Initial 37 | . 16 37 Average 67 | 14 102 32 Maximum Alert Level 1 | . 1 . Low Security (%) 93 | 100 87 100 Level 1 6 | . 12 . Level 2 . | . . . Level 3 . | . . . Level 4 . | . . . Level 5 . | . . . High Security . | . . . Max Security . | . . . Squads Dispatched 2 | . 2 . Investigation 1 | . 1 . Extermination . | . . . Reinforcement 1 | . 1 . Assault . | . . . Garrison . | . . . Intercept . | . . . Searches Triggered . | . . . Construction Impeded . | . . . Haulers Reinforced . | . . . Active Scanning Responses . | . . . Cargo Convoy Interrupts . | . . . Stealth | -11 -10 -10 --------- Run | Scr Mat Min Distress Signals 1 | . 1 . Communications Jammed . | . . . Distress Signals . | . . . Times Spotted 26 | . 12 14 Peak Tracking Total 11 | . 6 11 Tactical Retreats 1 | . . 1 Traps | -11 -10 -10 ------- Run | Scr Mat Min Traps Triggered . | . . . Indirectly . | . . . Trap Hack Attempts . | . . . Triggered . | . . . Disarmed . | . . . Reprogrammed 6 | . 6 . Reused 1 | . 1 . Traps Extracted . | . . . Installed . | . . . Triggered 1 | . 1 . Machines | -11 -10 -10 ---------- Run | Scr Mat Min Machines Disabled . | . . . Max in Single Turn . | . . . Machines Sabotaged . | . . . Garrisons Compromised . | . . . Overloaded Fab Kills . | . . . Hacking | -11 -10 -10 --------- Run | Scr Mat Min Machines Accessed 6 | . 5 1 Terminals 4 | . 4 . Fabricators . | . . . Repair Stations 1 | . 1 . Recycling Units . | . . . Scanalyzers . | . . . Garrison Access . | . . . Total Hacks 21 | . 20 1 Successful 15 | . 14 1 Failed 6 | . 6 . Catastrophic . | . . . Database Lockouts . | . . . Manual 10 | . 10 . Terminals 16 | . 16 . Fabricators . | . . . Repair Stations 4 | . 4 . Recycling Units . | . . . Scanalyzers . | . . . Garrison Access . | . . . Terminal Hacks 10 | . 9 1 Robot Analysis 3 | . 3 . Open Door 1 | . . 1 Branch Access Points 1 | . 1 . Locate Traps 1 | . 1 . Reprogram Traps 1 | . 1 . Patrol Status 1 | . 1 . Hauler Manifests 1 | . 1 . Zone Layout 1 | . 1 . Fabricator Hacks . | . . . Repair Station Hacks 4 | . 4 . Scan Component 2 | . 2 . Repair 2 | . 2 . Recycling Unit Hacks . | . . . Scanalyzer . | . . . Garrison Access Hacks . | . . . Unauthorized Hacks 1 | . 1 . Terminals 1 | . 1 . Botnet 1 | . 1 . Fabricators . | . . . Repair Stations . | . . . Recycling Units . | . . . Scanalyzers . | . . . Garrison Access . | . . . Data Cores Recovered . | . . . Used . | . . . Hacking Detections 5 | . 5 . Full Trace Events 1 | . 1 . Feedback Events 1 | . 1 . Corruption 1 | . 1 . Feedback Blocked . | . . . Robot Schematics Acquired . | . . . Robots Built . | . . . Authchips . | . . . Time . | . . . Total Robot Build Rating . | . . . Part Schematics Acquired . | . . . Parts Built . | . . . Authchips . | . . . Time . | . . . Total Part Build Rating . | . . . Parts Repaired 2 | . 2 . Time 26 | . 26 . Parts Recycled . | . . . Recycled Matter . | . . . Retrieved Matter . | . . . Retrieved Components . | . . . Parts Scanalyzed . | . . . Part Schematics Acquired . | . . . Parts Damaged . | . . . Bothacking | -11 -10 -10 ------------ Run | Scr Mat Min Used RIF Installer . | . . . Robots Hacked . | . . . Non-combat . | . . . Combat . | . . . Robot Hacks Applied . | . . . Relay Couplers Released . | . . . Fabnet Peak Effective % . | . . . Robots Rewired . | . . . Allies Hacked . | . . . Hacks Repelled . | . . . Allies | -11 -10 -10 -------- Run | Scr Mat Min Total Allies . | . . . Largest Group . | . . . Highest-Rated Group . | . . . Highest-Rated Ally . | . . . Total Orders . | . . . Ally Attacks . | . . . Total Damage . | . . . Kills . | . . . Allies Corrupted . | . . . Allies Melted . | . . . Intel | -11 -10 -10 ------- Run | Scr Mat Min Robot Analysis Total 3 | . 3 . Derelict Logs Recovered 2 | . . 2 Drone Launches . | . . . Drone Recoveries . | . . . Exploration | -11 -10 -10 ------------- Run | Scr Mat Min Turns Passed 1362 | 172 728 462 Spaces Moved 541 | 76 273 192 Core 21 | 4 . 17 Treads 520 | 72 273 175 Legs . | . . . Wheels . | . . . Hover . | . . . Flight . | . . . Fastest Speed 50 | 50 160 50 Average Speed 207 | 154 212 223 Slowest Speed 240 | 160 240 240 Overloaded Moves . | . . . Propulsion Burnouts . | . . . Robots Hopped . | . . . Cave-ins Triggered . | . . . Exploration Rate (%) 38 | 5 49 61 Regions Visited 2 Branch Regions 1 Pre-discovered Areas 1 | . . 1 Known Exits Taken 1 | . 1 . Unknown Exits Taken 1 | 1 . . Scrap Searched 1 | . . 1 Spaces Dug . | . . . Terrain Destroyed 7 | . . 7 Melee . | . . . Projectile . | . . . AOE 7 | . . 7 Terrain Rammed . | . . . Walls Destroyed . | . . . Machines Disabled . | . . . Actions | -11 -10 -10 --------- Run | Scr Mat Min Total 679 | 113 354 212 Wait 36 | . 36 . Move 539 | 75 272 192 Hop . | . . . Pick Up 20 | 11 4 5 Fast Attach 11 | 6 4 1 Attach 3 | 1 . 2 Detach 2 | . 1 1 Swap 1 | . 1 . Drop 4 | 3 1 . Fire 57 | 16 33 8 Melee . | . . . Ram . | . . . Kick . | . . . Crush 6 | 1 2 3 Escape Stasis . | . . . Rewire . | . . . Trap . | . . . Miscellaneous . | . . . Route ------- -11/Scrapyard -10/Materials (discovered 2 exits: *Mat / *Min) -10/Mines (discovered 1 exit: *Mat) History --------- Turn | Location | Event 19 | -11/Scrapyard | Discovered new exit (range 16) 173 | -11/Scrapyard | Entered Materials 245 | -10/Materials | Identified exit to Mines 307 | -10/Materials | Build established: Mutant 385 | -10/Materials | Repaired Lgt. Treads 400 | -10/Materials | Repaired Lgt. Treads 641 | -10/Materials | Discovered new exit (range 16) 901 | -10/Materials | Entered Mines 924 | -10/Mines | Met a Derelict who couldn't figure out how to use a Trap Extractor 1156 | -10/Mines | Identified exit to Materials 1304 | -10/Mines | Assembled infested the area 1353 | -10/Mines | Core integrity fell below 50% 1355 | -10/Mines | Released all parts (2) 1359 | -10/Mines | Core integrity fell below 20% 1363 | -10/Mines | Destroyed by as-50360 with Assembled Rifle Last Messages --------------- 01323_ Searching scrap... 01323_ Found Heat Sink. 01323_ Found Tractor Beam. 01323_ Found Terrain Scanner. 01323_ Found Lgt. Armor Plating. 01323_ Found 26 Matter. 01324_ Acquired 8 matter. 01330_ Acquired Lgt. Armor Plating. 01335_ Propulsion Shielding destroyed. 01337_ Lgt. Deuterium Engine destroyed. 01340_ as-16815 destroyed. 01342_ Grenade Launcher destroyed. 01345_ Lgt. Treads destroyed. 01346_ Lgt. Assault Rifle destroyed. 01346_ System corrupted by crushing effect (+2). 01350_ Slammed into as-31392. 01355_ Released Hcp. Storage Unit. 01355_ Released Adv. Treads. 01356_ ,KPCZTS%6 Y/PXT:J9FZYNANLMZI2Y0 01356_ as-39933 sneak attacks. Map ----- +----------------------------------------------------+ | ?????????????????? ##???? ???????# #??# #? | | ??????????????????? ##?? ????????# ### #? | | ??????????????????? ## ?????????# #? | | ???????????????????? ??????????# ##? | | ????????????????????# ???????????### #?? | | ???????????????###### #??????????????## ##?? | | ??????????????## #==#??????????????## ##?? | | ??????????????#% ! =!!*####??????????## ##? | | ??????????????#! ##!!! ##???????### ## | | ??????????? %#####!= #??????## # | | ??????? %% #???#!! #??????# | | ?????# ###??##a #??????# | | ?????# # ### !#?###### | | ?????# % a ### """ | | ????? a ### """ | | ????? # % % ! ### """ | | ???? # ##?# ### | | ????? ## #a #??## #?## | | ????? # #a #???####### #??## | | ??????? # # a##??####??## ##???## | | ???????? # # |%=## #### ###########?????## | | ???????? ###!#?# a ## ##???????????## | | ????????? ###??##%### ####?????????# | | ????????? ?????##!*## ##????????? | | ???????????????# =*! a ### ######???? | | ???????????????# @ ####?## ## ##??? | | ???????????????# ###?????## #??? | | ???????????????## ##????????##### """ #### | | ????????????????# #????????????## """ | | ????????????????# ### #???????????## """ | | ????????????????# #?# #???????????# ### | | ????????????????# #?# #???????????# #?# | | ???????????????? #?# ???????????## ## ##?# | | ??????????????? #? ???????????#########??# | | ?????????????? #####?